[Event "GX Alekhine Torneio Interno 2023"]
[Site "GXA, Portugal"]
[Date "????.??.??"]
[Round "1.1"]
[White "Corentin, Louis"]
[Black "Goncalves, Carlos Manuel Marqu"]
[Result "1-0"]
[TimeControl "1h 30m +30s"]
[WhiteElo "2054"]
[BlackElo "1499"]

1. f4 {[%clk 01:30:55]} {[%emt 00:00:04]} d5 {[%clk 01:29:54]} {[%emt
00:01:06]} 2. Nf3 {[%clk 01:31:14]} {[%emt 00:00:10]} e6 {[%clk 01:28:19]}
{[%emt 00:02:06]} 3. g3 {[%clk 01:31:21]} {[%emt 00:00:24]} Nf6 {[%clk
01:27:20]} {[%emt 00:01:29]} 4. Bg2 {[%clk 01:31:37]} {[%emt 00:00:13]} Be7
{[%clk 01:25:36]} {[%emt 00:02:15]} 5. O-O {[%clk 01:31:18]} {[%emt 00:00:48]}
O-O {[%clk 01:25:10]} {[%emt 00:00:56]} 6. d3 {[%clk 01:30:56]} {[%emt
00:00:53]} c6 {[%clk 01:23:11]} {[%emt 00:02:29]} 7. e3 {[%clk 01:27:32]}
{[%emt 00:03:54]} Re8 {[%clk 01:21:45]} {[%emt 00:01:56]} 8. Nc3 {[%clk
01:26:50]} {[%emt 00:01:11]} Nbd7 {[%clk 01:21:42]} {[%emt 00:00:33]} 9. e4
{[%clk 01:25:56]} {[%emt 00:01:23]} dxe4 {[%clk 01:15:20]} {[%emt 00:06:52]} 10.
dxe4 {[%clk 01:26:15]} {[%emt 00:00:11]} Qb6+ {[%clk 01:14:33]} {[%emt
00:01:18]} 11. Kh1 {[%clk 01:25:59]} {[%emt 00:00:45]} Ng4 {[%clk 01:10:59]}
{[%emt 00:04:05]} 12. Qe2 {[%clk 01:25:30]} {[%emt 00:00:59]} e5 {[%clk
01:09:03]} {[%emt 00:02:27]} 13. f5 {[%clk 01:22:05]} {[%emt 00:03:54]} h6
{[%clk 01:06:31]} {[%emt 00:03:02]} 14. h3 {[%clk 01:17:33]} {[%emt 00:05:02]}
Ngf6 {[%clk 01:06:38]} {[%emt 00:00:24]} 15. g4 {[%clk 01:16:50]} {[%emt
00:01:12]} Nh7 {[%clk 01:05:32]} {[%emt 00:01:36]} 16. h4 {[%clk 01:13:19]}
{[%emt 00:04:01]} Ndf6 {[%clk 00:57:58]} {[%emt 00:08:04]} 17. Nxe5 {[%clk
01:10:15]} {[%emt 00:03:35]} Qc7 {[%clk 00:49:14]} {[%emt 00:09:14]} 18. Bf4
{[%clk 01:09:54]} {[%emt 00:00:50]} Bd6 {[%clk 00:48:57]} {[%emt 00:00:48]} 19.
Nd3 {[%clk 01:09:42]} {[%emt 00:00:41]} Bxf4 {[%clk 00:48:53]} {[%emt
00:00:34]} 20. Nxf4 {[%clk 01:05:40]} {[%emt 00:04:30]} b5 {[%clk 00:46:50]}
{[%emt 00:02:36]} 21. a3 {[%clk 01:02:48]} {[%emt 00:03:21]} a5 {[%clk
00:47:15]} {[%emt 00:00:05]} 22. Qf3 {[%clk 00:55:03]} {[%emt 00:08:15]} Bb7
{[%clk 00:46:16]} {[%emt 00:01:29]} 23. Nd3 {[%clk 00:53:28]} {[%emt 00:02:04]}
b4 {[%clk 00:45:45]} {[%emt 00:01:01]} 24. axb4 {[%clk 00:53:00]} {[%emt
00:00:58]} axb4 {[%clk 00:46:01]} {[%emt 00:00:14]} 25. Nxb4 {[%clk 00:51:54]}
{[%emt 00:01:37]} Rxa1 {[%clk 00:43:43]} {[%emt 00:02:48]} 26. Rxa1 {[%clk
00:52:15]} {[%emt 00:00:08]} c5 {[%clk 00:42:59]} {[%emt 00:01:15]} 27. Nbd5
{[%clk 00:52:17]} {[%emt 00:00:28]} Qe5 {[%clk 00:43:13]} {[%emt 00:00:16]} 28.
Rd1 {[%clk 00:46:57]} {[%emt 00:05:50]} Nxd5 {[%clk 00:41:04]} {[%emt
00:02:40]} 29. exd5 {[%clk 00:45:58]} {[%emt 00:01:29]} Nf6 {[%clk 00:40:25]}
{[%emt 00:01:08]} 30. g5 {[%clk 00:44:08]} {[%emt 00:02:19]} hxg5 {[%clk
00:38:46]} {[%emt 00:02:10]} 31. hxg5 {[%clk 00:44:29]} {[%emt 00:00:09]} Nh7
{[%clk 00:34:55]} {[%emt 00:04:21]} 32. Ne4 {[%clk 00:31:59]} {[%emt 00:12:59]}
Rd8 {[%clk 00:30:15]} {[%emt 00:05:11]} 33. g6 {[%clk 00:30:05]} {[%emt
00:02:24]} fxg6 {[%clk 00:29:45]} {[%emt 00:01:00]} 34. fxg6 {[%clk 00:30:25]}
{[%emt 00:00:09]} Nf8 {[%clk 00:25:07]} {[%emt 00:05:08]} 35. Qf7+ {[%clk
00:29:23]} {[%emt 00:01:32]} Kh8 {[%clk 00:25:28]} {[%emt 00:00:09]} 36. Rd3
{[%clk 00:29:23]} {[%emt 00:00:30]} 1-0

[Event "GX Alekhine Torneio Interno 2023"]
[Site "GXA, Portugal"]
[Date "????.??.??"]
[Round "1.2"]
[White "Marques, Goncalo Jose Costa Ca"]
[Black "Gorgojo Freijo, Diego"]
[Result "0-1"]
[TimeControl "1h 30m +30s"]
[WhiteElo "1456"]
[BlackElo "1889"]

1. e4 {[%clk 01:29:08]} {[%emt 00:01:52]} c5 {[%clk 01:30:39]} {[%emt
00:00:22]} 2. Nf3 {[%clk 01:29:33]} {[%emt 00:00:05]} e6 {[%clk 01:30:49]}
{[%emt 00:00:20]} 3. d4 {[%clk 01:29:55]} {[%emt 00:00:08]} cxd4 {[%clk
01:30:55]} {[%emt 00:00:24]} 4. Nxd4 {[%clk 01:30:19]} {[%emt 00:00:06]} a6
{[%clk 01:31:11]} {[%emt 00:00:14]} 5. Nc3 {[%clk 01:30:16]} {[%emt 00:00:32]}
b5 {[%clk 01:31:18]} {[%emt 00:00:23]} 6. Be3 {[%clk 01:29:48]} {[%emt
00:00:57]} Bb7 {[%clk 01:31:10]} {[%emt 00:00:40]} 7. f3 {[%clk 01:29:46]}
{[%emt 00:00:32]} Qc7 {[%clk 01:29:35]} {[%emt 00:02:05]} 8. Qd2 {[%clk
01:27:54]} {[%emt 00:02:22]} Nf6 {[%clk 01:28:13]} {[%emt 00:01:52]} 9. Bd3
{[%clk 01:12:34]} {[%emt 00:15:49]} b4 {[%clk 01:24:02]} {[%emt 00:04:41]} 10.
Nce2 {[%clk 01:12:46]} {[%emt 00:00:18]} d5 {[%clk 01:23:45]} {[%emt 00:00:47]}
11. exd5 {[%clk 01:09:39]} {[%emt 00:03:37]} Nxd5 {[%clk 01:23:51]} {[%emt
00:00:25]} 12. Bf2 {[%clk 01:08:38]} {[%emt 00:01:30]} Nd7 {[%clk 01:19:12]}
{[%emt 00:05:10]} 13. O-O {[%clk 01:02:05]} {[%emt 00:07:03]} Rc8 {[%clk
01:06:04]} {[%emt 00:13:38]} 14. Rfe1 {[%clk 00:59:56]} {[%emt 00:02:39]} Bd6
{[%clk 01:01:22]} {[%emt 00:05:12]} 15. Ng3 {[%clk 00:55:38]} {[%emt 00:04:48]}
O-O {[%clk 00:52:40]} {[%emt 00:09:12]} 16. Rad1 {[%clk 00:41:54]} {[%emt
00:14:14]} Ne5 {[%clk 00:40:46]} {[%emt 00:12:24]} 17. Be4 {[%clk 00:40:14]}
{[%emt 00:02:10]} Nc4 {[%clk 00:39:30]} {[%emt 00:01:45]} 18. Qc1 {[%clk
00:38:21]} {[%emt 00:02:23]} Bf4 {[%clk 00:38:36]} {[%emt 00:01:24]} 19. Qa1
{[%clk 00:34:00]} {[%emt 00:04:51]} Rfd8 {[%clk 00:14:57]} {[%emt 00:24:09]} 20.
Nde2 {[%clk 00:26:57]} {[%emt 00:07:31]} Bd2 {[%clk 00:07:03]} {[%emt
00:08:25]} 21. Rf1 {[%clk 00:26:04]} {[%emt 00:01:22]} Nde3 {[%clk 00:07:01]}
{[%emt 00:00:33]} 22. Bxb7 {[%clk 00:23:32]} {[%emt 00:03:02]} Qxb7 {[%clk
00:07:24]} {[%emt 00:00:07]} 23. Ne4 {[%clk 00:22:08]} {[%emt 00:01:53]} Nxf1
{[%clk 00:05:55]} {[%emt 00:02:00]} 24. Rxf1 {[%clk 00:20:14]} {[%emt
00:02:23]} Ne3 {[%clk 00:06:03]} {[%emt 00:00:22]} 25. Bxe3 {[%clk 00:20:25]}
{[%emt 00:00:21]} Bxe3+ {[%clk 00:06:24]} {[%emt 00:00:08]} 26. Kh1 {[%clk
00:20:51]} {[%emt 00:00:04]} f5 {[%clk 00:05:38]} {[%emt 00:01:17]} 27. N4g3
{[%clk 00:20:51]} {[%emt 00:00:29]} Rxc2 {[%clk 00:05:46]} {[%emt 00:00:23]} 28.
h3 {[%clk 00:16:28]} {[%emt 00:04:53]} Rdd2 {[%clk 00:05:47]} {[%emt 00:00:29]}
29. Rd1 {[%clk 00:16:29]} {[%emt 00:00:29]} Qd5 {[%clk 00:04:58]} {[%emt
00:01:19]} 30. Rxd2 {[%clk 00:16:26]} {[%emt 00:00:32]} Rxd2 {[%clk 00:04:18]}
{[%emt 00:01:10]} 0-1

[Event "GX Alekhine Torneio Interno 2023"]
[Site "GXA, Portugal"]
[Date "????.??.??"]
[Round "1.3"]
[White "Reis, Luis Simoes Dos"]
[Black "Correia, Pedro Mourao Soares"]
[Result "0-1"]
[TimeControl "1h 30m +30s"]
[WhiteElo "1788"]
[BlackElo "1437"]

1. d4 {[%clk 01:30:51]} {[%emt 00:00:07]} c5 {[%clk 01:28:51]} {[%emt
00:02:10]} 2. c3 {[%clk 01:30:48]} {[%emt 00:00:33]} Nf6 {[%clk 01:28:12]}
{[%emt 00:01:09]} 3. Bf4 {[%clk 01:30:34]} {[%emt 00:00:45]} Nc6 {[%clk
01:25:09]} {[%emt 00:03:33]} 4. e3 {[%clk 01:30:18]} {[%emt 00:00:45]} d5
{[%clk 01:21:29]} {[%emt 00:04:11]} 5. Nd2 {[%clk 01:30:04]} {[%emt 00:00:45]}
Qb6 {[%clk 01:15:53]} {[%emt 00:06:06]} 6. Qb3 {[%clk 01:30:04]} {[%emt
00:00:29]} c4 {[%clk 01:11:06]} {[%emt 00:05:18]} 7. Qc2 {[%clk 01:30:17]}
{[%emt 00:00:16]} Nh5 {[%clk 01:05:17]} {[%emt 00:06:19]} 8. Bg5 {[%clk
01:29:32]} {[%emt 00:01:15]} e6 {[%clk 00:59:28]} {[%emt 00:06:19]} 9. Be2
{[%clk 01:28:10]} {[%emt 00:01:52]} Nf6 {[%clk 00:57:38]} {[%emt 00:02:20]} 10.
Bf4 {[%clk 01:25:33]} {[%emt 00:03:07]} Be7 {[%clk 00:53:57]} {[%emt 00:04:11]}
11. h3 {[%clk 01:25:38]} {[%emt 00:00:25]} Qd8 {[%clk 00:53:50]} {[%emt
00:00:37]} 12. Ngf3 {[%clk 01:22:35]} {[%emt 00:03:33]} Bd6 {[%clk 00:49:55]}
{[%emt 00:04:25]} 13. Bxd6 {[%clk 01:22:36]} {[%emt 00:00:30]} Qxd6 {[%clk
00:50:10]} {[%emt 00:00:15]} 14. e4 {[%clk 01:20:09]} {[%emt 00:02:57]} Qf4
{[%clk 00:46:11]} {[%emt 00:04:29]} 15. e5 {[%clk 01:07:33]} {[%emt 00:13:07]}
Nd7 {[%clk 00:41:09]} {[%emt 00:05:33]} 16. O-O {[%clk 01:01:14]} {[%emt
00:06:48]} O-O {[%clk 00:37:31]} {[%emt 00:04:08]} 17. b3 {[%clk 00:53:37]}
{[%emt 00:08:07]} b5 {[%clk 00:33:09]} {[%emt 00:04:53]} 18. a4 {[%clk
00:52:06]} {[%emt 00:02:01]} bxa4 {[%clk 00:30:13]} {[%emt 00:03:26]} 19. bxc4
{[%clk 00:50:21]} {[%emt 00:02:15]} f6 {[%clk 00:26:34]} {[%emt 00:04:08]} 20.
cxd5 {[%clk 00:47:50]} {[%emt 00:03:01]} exd5 {[%clk 00:26:14]} {[%emt
00:00:50]} 21. Bd3 {[%clk 00:31:34]} {[%emt 00:16:46]} fxe5 {[%clk 00:20:15]}
{[%emt 00:06:29]} 22. Bxh7+ {[%clk 00:29:19]} {[%emt 00:02:45]} Kh8 {[%clk
00:20:31]} {[%emt 00:00:14]} 23. dxe5 {[%clk 00:27:46]} {[%emt 00:02:03]} Nb6
{[%clk 00:18:16]} {[%emt 00:02:45]} 24. Bd3 {[%clk 00:23:33]} {[%emt 00:04:41]}
Bf5 {[%clk 00:13:44]} {[%emt 00:05:03]} 25. Bxf5 {[%clk 00:20:46]} {[%emt
00:03:17]} Qxf5 {[%clk 00:12:30]} {[%emt 00:01:45]} 26. Qxf5 {[%clk 00:21:04]}
{[%emt 00:00:11]} Rxf5 {[%clk 00:12:50]} {[%emt 00:00:10]} 27. Nd4 {[%clk
00:17:33]} {[%emt 00:04:01]} Nxd4 {[%clk 00:12:16]} {[%emt 00:01:05]} 28. cxd4
{[%clk 00:17:57]} {[%emt 00:00:05]} Rf4 {[%clk 00:07:32]} {[%emt 00:05:14]} 29.
Nf3 {[%clk 00:18:17]} {[%emt 00:00:10]} Kg8 {[%clk 00:05:56]} {[%emt 00:02:06]}
30. Rfc1 {[%clk 00:17:34]} {[%emt 00:01:13]} Re4 {[%clk 00:03:05]} {[%emt
00:03:21]} 31. Rc7 {[%clk 00:14:19]} {[%emt 00:03:45]} Re2 {[%clk 00:02:34]}
{[%emt 00:01:01]} 32. Ng5 {[%clk 00:13:23]} {[%emt 00:01:26]} Rf8 {[%clk
00:02:23]} {[%emt 00:00:40]} 33. f3 {[%clk 00:11:19]} {[%emt 00:02:35]} Rd2
{[%clk 00:01:37]} {[%emt 00:01:16]} 34. Ne6 {[%clk 00:11:28]} {[%emt 00:00:21]}
Rf7 {[%clk 00:01:22]} {[%emt 00:00:45]} 35. Rxf7 {[%clk 00:09:33]} {[%emt
00:02:24]} Kxf7 {[%clk 00:01:39]} {[%emt 00:00:13]} 36. Nd8+ {[%clk 00:09:54]}
{[%emt 00:00:09]} Ke8 {[%clk 00:01:17]} {[%emt 00:00:52]} 37. Nc6 {[%clk
00:08:35]} {[%emt 00:01:49]} a6 {[%clk 00:00:56]} {[%emt 00:00:52]} 38. Nb4
{[%clk 00:04:40]} {[%emt 00:04:25]} Rxd4 {[%clk 00:00:58]} {[%emt 00:00:28]} 39.
Nxa6 {[%clk 00:04:48]} {[%emt 00:00:22]} Ke7 {[%clk 00:00:57]} {[%emt
00:00:31]} 40. Nc5 {[%clk 00:03:55]} {[%emt 00:01:22]} Rc4 {[%clk 00:00:48]}
{[%emt 00:00:39]} 41. Nd3 {[%clk 00:04:12]} {[%emt 00:00:14]} Rc3 {[%clk
00:00:53]} {[%emt 00:00:24]} 42. Nc1 {[%clk 00:02:37]} {[%emt 00:02:06]} d4
{[%clk 00:00:45]} {[%emt 00:00:38]} 43. Ne2 {[%clk 00:01:39]} {[%emt 00:01:28]}
Rc4 {[%clk 00:00:51]} {[%emt 00:00:24]} 44. Rd1 {[%clk 00:01:07]} {[%emt
00:01:02]} Ke6 {[%clk 00:00:52]} {[%emt 00:00:30]} 45. f4 {[%clk 00:00:58]}
{[%emt 00:00:39]} Kd5 {[%clk 00:00:47]} {[%emt 00:00:35]} 46. g4 {[%clk
00:00:54]} {[%emt 00:00:34]} Nd7 {[%clk 00:00:50]} {[%emt 00:00:27]} 47. Kf2
{[%clk 00:01:03]} {[%emt 00:00:20]} Nc5 {[%clk 00:00:44]} {[%emt 00:00:36]} 48.
Kf3 {[%clk 00:01:20]} {[%emt 00:00:13]} a3 {[%clk 00:00:41]} {[%emt 00:00:33]}
49. Nc1 {[%clk 00:00:32]} {[%emt 00:01:18]} Rc3+ {[%clk 00:00:45]} {[%emt
00:00:27]} 50. Ke2 {[%clk 00:00:47]} {[%emt 00:00:14]} Kc4 {[%clk 00:00:45]}
{[%emt 00:00:29]} 51. Rd2 {[%clk 00:01:01]} {[%emt 00:00:17]} Rxc1 {[%clk
00:00:46]} {[%emt 00:00:29]} 52. f5 {[%clk 00:01:23]} {[%emt 00:00:08]} Rh1
{[%clk 00:00:48]} {[%emt 00:00:28]} 53. e6 {[%clk 00:01:31]} {[%emt 00:00:22]}
Rxh3 {[%clk 00:00:52]} {[%emt 00:00:26]} 54. g5 {[%clk 00:01:40]} {[%emt
00:00:21]} Re3+ {[%clk 00:00:44]} {[%emt 00:00:37]} 55. Kd1 {[%clk 00:01:50]}
{[%emt 00:00:20]} Nxe6 {[%clk 00:00:51]} {[%emt 00:00:24]} 56. fxe6 {[%clk
00:01:34]} {[%emt 00:00:46]} Rxe6 {[%clk 00:01:10]} {[%emt 00:00:11]} 57. Kc2
{[%clk 00:01:35]} {[%emt 00:00:29]} Rb6 {[%clk 00:01:11]} {[%emt 00:00:28]} 58.
Kc1 {[%clk 00:01:44]} {[%emt 00:00:23]} Rb3 {[%clk 00:00:53]} {[%emt 00:00:47]}
59. Rf2 {[%clk 00:01:45]} {[%emt 00:00:29]} Rg3 {[%clk 00:00:57]} {[%emt
00:00:24]} 60. Kb1 {[%clk 00:01:11]} {[%emt 00:01:05]} Rxg5 {[%clk 00:01:12]}
{[%emt 00:00:16]} 61. Ka2 {[%clk 00:01:33]} {[%emt 00:00:08]} Kc3 {[%clk
00:01:00]} {[%emt 00:00:41]} 62. Rf3+ {[%clk 00:01:28]} {[%emt 00:00:36]} d3
{[%clk 00:01:17]} {[%emt 00:00:14]} 63. Rh3 {[%clk 00:01:37]} {[%emt 00:00:20]}
Kc2 {[%clk 00:01:15]} {[%emt 00:00:31]} 64. Kxa3 {[%clk 00:01:36]} {[%emt
00:00:32]} d2 {[%clk 00:01:21]} {[%emt 00:00:24]} 0-1

[Event "GX Alekhine Torneio Interno 2023"]
[Site "GXA, Portugal"]
[Date "????.??.??"]
[Round "2.1"]
[White "Lucio, Jorge Manuel Rodrigues"]
[Black "Corentin, Louis"]
[Result "0-1"]
[TimeControl "1h 30m +30s"]
[WhiteElo "1718"]
[BlackElo "2054"]

1. d4 {[%clk 01:31:26]} {[%emt 00:00:04]} d6 {[%clk 01:31:00]} {[%emt
00:00:29]} 2. c4 {[%clk 01:30:51]} {[%emt 00:01:15]} Nf6 {[%clk 01:31:19]}
{[%emt 00:00:02]} 3. Nc3 {[%clk 01:31:13]} {[%emt 00:00:08]} Bf5 {[%clk
01:31:26]} {[%emt 00:00:23]} 4. f3 {[%clk 01:27:23]} {[%emt 00:04:20]} Nbd7
{[%clk 01:25:42]} {[%emt 00:06:13]} 5. e4 {[%clk 01:25:54]} {[%emt 00:01:59]}
Bg6 {[%clk 01:26:03]} {[%emt 00:00:08]} 6. Bd3 {[%clk 01:24:50]} {[%emt
00:01:35]} e5 {[%clk 01:21:54]} {[%emt 00:04:39]} 7. d5 {[%clk 01:23:40]}
{[%emt 00:01:40]} Be7 {[%clk 01:15:10]} {[%emt 00:07:13]} 8. Nge2 {[%clk
01:21:35]} {[%emt 00:02:37]} h6 {[%clk 01:08:32]} {[%emt 00:07:08]} 9. Be3
{[%clk 01:19:21]} {[%emt 00:02:45]} Nh7 {[%clk 01:04:32]} {[%emt 00:04:30]} 10.
O-O {[%clk 01:19:22]} {[%emt 00:00:28]} Bg5 {[%clk 01:01:51]} {[%emt 00:03:11]}
11. Bf2 {[%clk 01:19:36]} {[%emt 00:00:16]} O-O {[%clk 01:00:41]} {[%emt
00:01:39]} 12. b4 {[%clk 01:15:42]} {[%emt 00:04:24]} f5 {[%clk 00:57:18]}
{[%emt 00:03:53]} 13. exf5 {[%clk 01:13:01]} {[%emt 00:03:01]} Bxf5 {[%clk
00:57:40]} {[%emt 00:00:19]} 14. Bxf5 {[%clk 01:12:45]} {[%emt 00:00:43]} Rxf5
{[%clk 00:57:08]} {[%emt 00:01:04]} 15. Qd3 {[%clk 01:11:51]} {[%emt 00:01:23]}
Rf7 {[%clk 00:54:41]} {[%emt 00:02:57]} 16. Ne4 {[%clk 01:10:44]} {[%emt
00:01:38]} Be7 {[%clk 00:53:36]} {[%emt 00:01:35]} 17. N2c3 {[%clk 01:07:09]}
{[%emt 00:04:06]} Nhf6 {[%clk 00:51:24]} {[%emt 00:02:41]} 18. Nxf6+ {[%clk
01:06:33]} {[%emt 00:01:06]} gxf6 {[%clk 00:46:44]} {[%emt 00:05:09]} 19. Qg6+
{[%clk 01:04:13]} {[%emt 00:02:52]} Rg7 {[%clk 00:47:05]} {[%emt 00:00:09]} 20.
Qxh6 {[%clk 01:03:33]} {[%emt 00:01:10]} Nb6 {[%clk 00:39:55]} {[%emt
00:07:40]} 21. Qd2 {[%clk 00:51:23]} {[%emt 00:12:40]} Nxc4 {[%clk 00:38:33]}
{[%emt 00:01:52]} 22. Qd3 {[%clk 00:51:30]} {[%emt 00:00:24]} Nb6 {[%clk
00:38:48]} {[%emt 00:00:16]} 23. a4 {[%clk 00:42:26]} {[%emt 00:09:35]} Qd7
{[%clk 00:32:50]} {[%emt 00:06:27]} 24. a5 {[%clk 00:39:22]} {[%emt 00:03:34]}
Nc8 {[%clk 00:32:50]} {[%emt 00:00:30]} 25. a6 {[%clk 00:36:52]} {[%emt
00:03:00]} b6 {[%clk 00:22:08]} {[%emt 00:11:12]} 26. Rfd1 {[%clk 00:33:59]}
{[%emt 00:03:23]} f5 {[%clk 00:21:09]} {[%emt 00:01:28]} 27. g3 {[%clk
00:29:58]} {[%emt 00:04:32]} Bg5 {[%clk 00:19:45]} {[%emt 00:01:54]} 28. Ra2
{[%clk 00:26:23]} {[%emt 00:04:05]} Ne7 {[%clk 00:13:47]} {[%emt 00:06:27]} 29.
Rc2 {[%clk 00:21:21]} {[%emt 00:05:33]} Ng6 {[%clk 00:13:13]} {[%emt 00:01:04]}
30. Nb5 {[%clk 00:17:27]} {[%emt 00:04:24]} e4 {[%clk 00:13:33]} {[%emt
00:00:10]} 31. fxe4 {[%clk 00:09:38]} {[%emt 00:08:18]} fxe4 {[%clk 00:10:12]}
{[%emt 00:03:50]} 32. Qe2 {[%clk 00:07:14]} {[%emt 00:02:54]} e3 {[%clk
00:09:19]} {[%emt 00:01:24]} 33. Be1 {[%clk 00:06:05]} {[%emt 00:01:39]} Nf4
{[%clk 00:06:25]} {[%emt 00:03:24]} 34. gxf4 {[%clk 00:04:27]} {[%emt
00:02:07]} Bxf4+ {[%clk 00:06:45]} {[%emt 00:00:09]} 35. Kh1 {[%clk 00:03:04]}
{[%emt 00:01:53]} Qf5 {[%clk 00:07:02]} {[%emt 00:00:13]} 36. Rc4 {[%clk
00:02:58]} {[%emt 00:00:37]} Rf8 {[%clk 00:04:42]} {[%emt 00:02:49]} 37. Bc3
{[%clk 00:02:18]} {[%emt 00:01:10]} Be5 {[%clk 00:04:09]} {[%emt 00:01:02]} 38.
Bxe5 {[%clk 00:01:34]} {[%emt 00:01:15]} Qxe5 {[%clk 00:04:29]} {[%emt
00:00:10]} 39. Rcd4 {[%clk 00:01:13]} {[%emt 00:00:52]} Rf2 {[%clk 00:04:47]}
{[%emt 00:01:28]} 0-1